Cogmind - Beta 10.1 @@@ ROGUE MODE // 2020.10.26 @ 01:24:56 Player: aperiodic Result: Destroyed by PA-AD1(z) with Zionite Laser-S Performance ------------- Evolutions (3) 1500 Regions Visited (12) 2400 Robots Destroyed (86) 430 Value Destroyed (1949) 1949 Prototype IDs (41) 820 Alien Tech Used (0) 0 Bonus (300) 300 TOTAL SCORE: 7399 Bonus ------- Aligned with FarCom 300 Cogmind --------- Core Integrity 0/700 Matter 295/300 Energy 76/100 System Corruption 0% Temperature Cool (9) Movement Flying (29) Location -7/Deep Caves Parts ------- > --- POWER (1) -------- (None) > --- PROPULSION (4) --- Improved Flight Unit Improved VTOL Module Improved VTOL Module > --- UTILITY (6) ------ Target Analyzer > --- WEAPON (2) ------- Makeshift Spear Makeshift Spear > --- INVENTORY (4) ---- Improved VTOL Module Peak State ------------ > --- POWER ------------ Micro Nuclear Core > --- PROPULSION ------- Improved Flight Unit Improved VTOL Module Improved VTOL Module Improved VTOL Module > --- UTILITY ---------- Medium Storage Unit Improved Propulsion Shielding EM Shield Hacking Suite Hacking Suite Phasing AFG > --- WEAPON ----------- Improved Datajack Makeshift Spear > --- INVENTORY -------- Micro Nuclear Core Improved VTOL Module Improved ECM Suite System Shield Improved Trap Extractor Trap Reconfigurator Advanced EMP Blaster Fire Trap [Rating: 57] Favorites ----------- Power Reinforced Ion Engine Engine Reinforced Ion Engine Power Core Micro Nuclear Core Propulsion Improved VTOL Module Treads Medium Treads Wheel Wheel Flight Unit Improved VTOL Module Utility High-capacity Storage Unit Device Shield Generator Storage High-capacity Storage Unit Processor Improved Melee Analysis Suite Hackware Hacking Suite Protection Hardened Medium Armor Plating Weapon Makeshift Spear Energy Gun Particle Gun Ballistic Gun Heavy Assault Rifle Launcher Advanced EMP Blaster Impact Weapon Heavy Hammer Piercing Weapon Makeshift Spear Special Melee Weapon Improved Datajack Build | -11 -10 -10 -10 -9 -8 -7 -7 -7 -7 -7 -7 -7 ------- Run | Scr Mat Min Exi Min Mat Fac Was Fac Low Low Zio Dee Slots Evolved 6 | . . . . . 4 2 . . . . . . Power . | . . . . . . . . . . . . . Propulsion 2 | . . . . . . 2 . . . . . . Utility 4 | . . . . . 4 . . . . . . . Weapon . | . . . . . . . . . . . . . Parts Attached 167 | 6 17 7 . 7 58 12 . 42 1 3 8 6 Power 14 | 1 1 1 . 1 3 2 . 4 . . . 1 Engine 11 | 1 1 1 . 1 3 1 . 3 . . . . Core 3 | . . . . . . 1 . 1 . . . 1 Reactor . | . . . . . . . . . . . . . Propulsion 52 | 2 9 3 . 4 24 4 . 6 . . . . Treads 20 | . 4 1 . 2 13 . . . . . . . Leg . | . . . . . . . . . . . . . Wheel 21 | 2 5 2 . 2 10 . . . . . . . Hover . | . . . . . . . . . . . . . Flight 11 | . . . . . 1 4 . 6 . . . . Utility 65 | 1 3 . . . 16 4 . 31 1 3 5 1 Device 36 | . . . . . 8 . . 21 1 3 3 . Storage 7 | 1 3 . . . 2 1 . . . . . . Processor 2 | . . . . . . 1 . . . . 1 . Hackware 4 | . . . . . 2 . . 2 . . . . Protection 16 | . . . . . 4 2 . 8 . . 1 1 Artifact . | . . . . . . . . . . . . . Weapon 36 | 2 4 3 . 2 15 2 . 1 . . 3 4 Energy Gun 4 | 2 2 . . . . . . . . . . . Energy Cannon . | . . . . . . . . . . . . . Ballistic Gun 17 | . 1 3 . 2 10 1 . . . . . . Ballistic Cannon . | . . . . . . . . . . . . . Launcher 3 | . . . . . 1 . . . . . . 2 Special Weapon . | . . . . . . . . . . . . . Impact Weapon 1 | . 1 . . . . . . . . . . . Slashing Weapon . | . . . . . . . . . . . . . Piercing Weapon 10 | . . . . . 4 1 . 1 . . 2 2 Special Melee Weapon 1 | . . . . . . . . . . . 1 . Unidentified Prototypes 5 | . . . . . 3 . . 1 . . 1 . Parts Lost 22 | . 4 2 . 1 6 . . . 1 . . 8 Power 2 | . . . . . . . . . . . . 2 Propulsion 3 | . 1 . . . 1 . . . . . . 1 Utility 8 | . . . . . 3 . . . 1 . . 4 Weapon 9 | . 3 2 . 1 2 . . . . . . 1 Highest Loss Streak 8 | . 2 1 . 1 2 . . . 1 . . 8 Average Slot Usage (%) 95 | . 91 99 100 100 97 83 92 91 92 88 99 89 Engine 7 | . 14 14 14 14 9 5 7 1 . . . . Core 1 | . . . . . . 1 . 5 7 7 7 6 Treads 7 | . 10 7 . . 14 3 . . . . . . Wheel 7 | . 13 20 28 27 3 . . . . . . . Flight 10 | . . . . . . 22 30 29 30 30 30 29 Device 7 | . . . . . 14 3 . 3 6 11 14 9 Storage 16 | . 23 28 28 28 18 8 7 7 7 7 7 2 Hackware 9 | . . . . . 7 15 15 27 23 15 12 5 Protection 5 | . . . . . 11 8 15 3 7 7 7 9 Energy Gun 2 | . 14 1 . . . . . . . . . . Ballistic Gun 11 | . 8 26 28 28 17 5 . . . . . . Piercing Weapon 3 | . . . . . . 4 7 7 7 7 9 14 Naked Turns . | . . . . . . . . . . . . . Heaviest Build 101 | 13 64 62 60 62 101 91 23 23 20 22 24 28 Greatest Support 56 | 26 40 20 20 20 56 48 24 24 24 24 24 24 Greatest Overweight (x) 4 | 2 3 3 2 3 4 1 . 1 . . . 3 Average Overweight (x) . | . 2 2 2 2 1 . . . . . . . Largest Inventory Capacity 20 | 6 18 18 18 18 20 20 8 8 8 8 8 8 Average Capacity 14 | 4 13 18 18 18 19 10 8 8 8 8 8 5 Most Carried 20 | 4 14 18 18 18 20 20 6 8 8 8 8 7 Average Carried 13 | 3 7 16 17 17 18 8 6 7 7 8 7 4 Final Capacity 20 | 6 18 18 18 18 20 8 8 8 8 8 8 4 Final Carried 20 | 4 14 18 18 18 20 6 6 8 8 8 8 1 Class Distribution -------------------- 42% | Mutant 23% | Hacker-Sprinter 19% | Hacker-Mutant 9% | Hauler-Mutant 3% | Sprinter Dominant Class ---------------- Mutant | -10/Materials Mutant | -10/Mines Mutant | -10/Exiles Mutant | -9/Mines Hacker-Mutant | -8/Materials Hacker-Mutant | -7/Factory Hacker-Sprinter | -7/Waste Hacker-Sprinter | -7/Factory Hacker-Sprinter | -7/Lower Caves Hacker-Sprinter | -7/Lower Caves Hacker-Sprinter | -7/Zion Sprinter | -7/Deep Caves Resources | -11 -10 -10 -10 -9 -8 -7 -7 -7 -7 -7 -7 -7 ----------- Run | Scr Mat Min Exi Min Mat Fac Was Fac Low Low Zio Dee Matter Collected 2748 | 213 305 179 10 105 1172 28 . 540 38 41 79 38 Remotely . | . . . . . . . . . . . . . Salvage Created 3077 | . 574 292 . 209 1530 28 . 396 . . . 48 Parts 191 | . 34 25 . 11 89 1 . 31 . . . . Haulers Intercepted 8 | . 2 . . . 4 . . 2 . . . . Recyclers Shooed 4 | . 1 1 . . 2 . . . . . . . Parts Field Recycled . | . . . . . . . . . . . . . Retrieved Matter . | . . . . . . . . . . . . . Parts Self-Destructed 4 | . . . . . . . . . 4 . . . Prevented . | . . . . . . . . . . . . . Kills | -11 -10 -10 -10 -9 -8 -7 -7 -7 -7 -7 -7 -7 ------- Run | Scr Mat Min Exi Min Mat Fac Was Fac Low Low Zio Dee Combat Hostiles Destroyed 54 | . 13 11 . 3 23 . . 1 . . . 3 Melee 4 | . . . . . 3 . . 1 . . . . Guns 47 | . 13 11 . 3 20 . . . . . . . AOE 3 | . . . . . . . . . . . . 3 Classes Destroyed 14 | . 5 1 . 1 5 . . 1 . . . 1 Worker 5 | . . . . . 2 . . 3 . . . . Builder 1 | . . . . . 1 . . . . . . . Tunneler 1 | . . . . . . . . 1 . . . . Hauler 8 | . 2 . . . 4 . . 2 . . . . Recycler 4 | . . 1 . 1 1 . . 1 . . . . Mechanic 2 | . . . . . 1 1 . . . . . . Operator 3 | . 2 . . . 1 . . . . . . . Watcher 8 | . 1 . . . 3 . . 4 . . . . Swarmer 19 | . 6 9 . . 3 . . 1 . . . . Grunt 23 | . 7 2 . 2 12 . . . . . . . Duelist 1 | . . . . . 1 . . . . . . . Sentry 6 | . . . . 1 5 . . . . . . . Hunter 2 | . . . . . 2 . . . . . . . Assembled 3 | . . . . . . . . . . . . 3 Best Kill Streak 5 | . 3 3 . 2 5 1 . 2 . . . 3 Combat Bots Only 5 | . 3 3 . 2 5 . . 1 . . . 3 Max Kills in Single Turn 1 | . 1 1 . 1 1 1 . 1 . . . 1 Gunslinging . | . . . . . . . . . . . . . Exploded 1 | . . . . . . . . . . . . 1 Melee 1 | . . . . . 1 . . 1 . . . . Uniques/NPCs Destroyed . | . . . . . . . . . . . . . Combat | -11 -10 -10 -10 -9 -8 -7 -7 -7 -7 -7 -7 -7 -------- Run | Scr Mat Min Exi Min Mat Fac Was Fac Low Low Zio Dee Damage Taken 4715 | . 713 405 . 215 1652 . . 438 47 13 . 1232 Core 977 | . 68 69 . 11 116 . . 146 16 . . 551 Absorbed by Shields 388 | . . . . . 388 . . . . . . . Core Remaining (%) 72 | 100 . . . 40 78 . . . . . . . Volleys Fired 238 | . 50 41 . 16 127 . . . . . . 4 Largest 2 | . 2 2 . 2 2 . . . . . . 1 Hottest 85 | . 85 85 . 43 48 . . . . . . 36 Shots Fired 458 | . 92 77 . 32 253 . . . . . . 4 Gun 454 | . 92 77 . 32 253 . . . . . . . Cannon . | . . . . . . . . . . . . . Launcher 4 | . . . . . . . . . . . . 4 Special . | . . . . . . . . . . . . . Kinetic 389 | . 37 67 . 32 253 . . . . . . . Thermal 36 | . 26 10 . . . . . . . . . . Explosive . | . . . . . . . . . . . . . Electromagnetic 33 | . 29 . . . . . . . . . . 4 Robot Hit Streak 20 | . 15 12 . 15 20 . . . . . . . Robot Miss Streak 7 | . 2 4 . 2 7 . . . . . . 3 Penetration Max . | . . . . . . . . . . . . . Secondary Targets 6 | . 1 3 . 1 1 . . . . . . . Max Gunslinging Chain 1 | . 1 1 . 1 1 . . . . . . . Shots Hit Robots 371 | . 64 45 . 24 194 2 . 23 . . 8 11 Core Hits 146 | . 27 18 . 11 70 1 . 12 . . . 7 Critical Hits 4 | . . . . . 1 . . 2 . . . 1 Critical Kills . | . . . . . . . . . . . . . Critical Parts Destroyed 3 | . . . . . 1 . . 2 . . . . Melee Attacks 168 | . 2 . . . 15 4 . 71 4 . 51 21 Impact 2 | . 2 . . . . . . . . . . . Slashing . | . . . . . . . . . . . . . Piercing 158 | . . . . . 15 4 . 71 4 . 43 21 Sneak Attacks 13 | . . . . . 2 1 . 10 . . . . Combat Hostiles . | . . . . . . . . . . . . . Follow-up Attacks 5 | . . . . . . . . . . . . 5 Damage Inflicted 6549 | . 817 451 . 218 2984 145 . 1522 . . . 412 Guns 4073 | . 762 451 . 218 2642 . . . . . . . Cannons . | . . . . . . . . . . . . . Explosions 115 | . 27 . . . . . . . . . . 88 Melee 2286 | . . . . . 295 145 . 1522 . . . 324 Ramming 75 | . 28 . . . 47 . . . . . . . Kinetic 3523 | . 302 361 . 218 2642 . . . . . . . Thermal 386 | . 296 90 . . . . . . . . . . Explosive . | . . . . . . . . . . . . . Electromagnetic 279 | . 191 . . . . . . . . . . 88 Impact . | . . . . . . . . . . . . . Slashing . | . . . . . . . . . . . . . Piercing 2286 | . . . . . 295 145 . 1522 . . . 324 Highest Corruption 6 | . . . . . . . 6 6 . . . . Average Corruption 3 | . . . . . . . 6 3 . . . . Corruption Purged 6 | . . . . . . . . 6 . . . . Effects 24 | . . . . . . . . 24 . . . . Message Errors 8 | . . . . . . . . 8 . . . . Matter Fused 5 | . . . . . . . . 5 . . . . Heat Flow Errors 2 | . . . . . . . . 2 . . . . Energy Discharges 2 | . . . . . . . . 2 . . . . Parts Rejected 1 | . . . . . . . . 1 . . . . Data Loss (minor) 4 | . . . . . . . . 4 . . . . Targeting Errors 2 | . . . . . . . . 2 . . . . Overload Shots . | . . . . . . . . . . . . . Overflow Damage 379 | . . . . . 51 72 . 253 . . . 3 Projectiles . | . . . . . . . . . . . . . Explosions . | . . . . . . . . . . . . . Melee 379 | . . . . . 51 72 . 253 . . . 3 Knockbacks . | . . . . . . . . . . . . . Impact . | . . . . . . . . . . . . . Kinetic . | . . . . . . . . . . . . . Secondary . | . . . . . . . . . . . . . Self-Inflicted Damage . | . . . . . . . . . . . . . Shots . | . . . . . . . . . . . . . Rammed 10 | . 5 . . . 5 . . . . . . . Targets Rammed 10 | . 5 . . . 5 . . . . . . . Kicked . | . . . . . . . . . . . . . Crushed . | . . . . . . . . . . . . . Highest Temperature 521 | . 276 180 . 32 521 . . 267 . . . 13 Average Temperature 83 | . 81 43 . 10 106 . . 128 . . . 8 Received Heat Transfer 1262 | . 294 48 . 126 404 . . 39 . 9 . 342 Effects 13 | . 1 . . . 11 . . 1 . . . . Shutdowns 3 | . . . . . 3 . . . . . . . Energy Bleed 2 | . 1 . . . . . . 1 . . . . Interference 2 | . . . . . 2 . . . . . . . Matter Decay 3 | . . . . . 3 . . . . . . . Damage (major) 3 | . . . . . 3 . . . . . . . Siege Activations . | . . . . . . . . . . . . . Robots Corrupted . | . . . . . . . . . . . . . Combat Hostiles . | . . . . . . . . . . . . . Parts Fried 1 | . 1 . . . . . . . . . . . Impact Corruptions . | . . . . . . . . . . . . . Robots Melted . | . . . . . . . . . . . . . Combat Hostiles . | . . . . . . . . . . . . . Parts Melted 1 | . 1 . . . . . . . . . . . Heat Transferred 893 | . 671 222 . . . . . . . . . . Parts Sabotaged . | . . . . . . . . . . . . . Parts Stolen . | . . . . . . . . . . . . . Parts Stripped . | . . . . . . . . . . . . . Power Chain Reactions 1 | . 1 . . . . . . . . . . . Missiles Intercepted . | . . . . . . . . . . . . . Alert | -11 -10 -10 -10 -9 -8 -7 -7 -7 -7 -7 -7 -7 ------- Run | Scr Mat Min Exi Min Mat Fac Was Fac Low Low Zio Dee Peak Influence 553 | . 312 190 . 75 245 94 77 553 . . . . Initial 87 | . . 5 . . 29 87 32 53 . . . . Average 121 | . 129 65 . 49 123 88 56 170 . . . . Maximum Alert Level 2 | . 1 . . . 1 . . 2 . . . . Low Security (%) 83 | 100 67 100 . 100 86 100 100 75 . . . . Level 1 10 | . 32 . . . 13 . . . . . . . Level 2 5 | . . . . . . . . 24 . . . . Level 3 . | . . . . . . . . . . . . . Level 4 . | . . . . . . . . . . . . . Level 5 . | . . . . . . . . . . . . . High Security . | . . . . . . . . . . . . . Max Security . | . . . . . . . . . . . . . Squads Dispatched 10 | . 3 . . . 2 . . 5 . . . . Investigation 7 | . 1 . . . 2 . . 4 . . . . Extermination 1 | . . . . . . . . 1 . . . . Reinforcement 2 | . 2 . . . . . . . . . . . Assault . | . . . . . . . . . . . . . Garrison . | . . . . . . . . . . . . . Intercept . | . . . . . . . . . . . . . Construction Impeded . | . . . . . . . . . . . . . Haulers Reinforced . | . . . . . . . . . . . . . Stealth | -11 -10 -10 -10 -9 -8 -7 -7 -7 -7 -7 -7 -7 --------- Run | Scr Mat Min Exi Min Mat Fac Was Fac Low Low Zio Dee Distress Signals 4 | . 3 . . . 1 . . . . . . . Communications Jammed . | . . . . . . . . . . . . . Distress Signals . | . . . . . . . . . . . . . Times Spotted 148 | . 30 13 . 4 37 1 5 30 4 18 . 6 Peak Tracking Total 12 | . 5 3 . 2 4 . 5 12 3 11 . 3 Tactical Retreats 17 | . 2 2 . . 3 . . 4 1 5 . . Traps | -11 -10 -10 -10 -9 -8 -7 -7 -7 -7 -7 -7 -7 ------- Run | Scr Mat Min Exi Min Mat Fac Was Fac Low Low Zio Dee Traps Triggered 2 | . 1 . . . . 1 . . . . . . Indirectly . | . . . . . . . . . . . . . Trap Hack Attempts . | . . . . . . . . . . . . . Triggered . | . . . . . . . . . . . . . Disarmed . | . . . . . . . . . . . . . Reprogrammed . | . . . . . . . . . . . . . Reused 16 | . . . . . 1 . . 15 . . . . Traps Reconfigurated 48 | . . . . . 3 . . 45 . . . . Traps Extracted 1 | . . . . . . . . . . 1 . . Installed 1 | . . . . . . . . . . . . 1 Triggered 19 | . . . . . 1 . . 15 1 2 . . Machines | -11 -10 -10 -10 -9 -8 -7 -7 -7 -7 -7 -7 -7 ---------- Run | Scr Mat Min Exi Min Mat Fac Was Fac Low Low Zio Dee Machines Disabled 1 | . . . . . . . . . . . . 1 Max in Single Turn 1 | . . . . . . . . . . . . 1 Garrison Access 2 | . . . . . . . . 2 . . . . Machines Sabotaged . | . . . . . . . . . . . . . Garrisons Compromised . | . . . . . . . . . . . . . Overloaded Fab Kills . | . . . . . . . . . . . . . Fab Network Shutdowns 1 | . . . . . . . . 1 . . . . Hacking | -11 -10 -10 -10 -9 -8 -7 -7 -7 -7 -7 -7 -7 --------- Run | Scr Mat Min Exi Min Mat Fac Was Fac Low Low Zio Dee Machines Accessed 40 | . 7 1 2 . 7 1 . 21 1 . . . Terminals 23 | . 6 . . . 5 . . 12 . . . . Fabricators 3 | . . . . . . . . 3 . . . . Repair Stations 2 | . 1 . . . . . . 1 . . . . Recycling Units 1 | . . . . . 1 . . . . . . . Scanalyzers 4 | . . . . . 1 . . 3 . . . . Garrison Access 3 | . . . . . . 1 . 2 . . . . Total Hacks 130 | . 30 1 2 . 32 2 . 62 1 . . . Successful 86 | . 21 1 2 . 16 . . 45 1 . . . Failed 43 | . 9 . . . 16 2 . 16 . . . . Catastrophic 8 | . 2 . . . 4 . . 2 . . . . Database Lockouts 1 | . . . . . . . . 1 . . . . Manual 70 | . 24 . 1 . 18 . . 27 . . . . Terminals 98 | . 28 . . . 26 . . 44 . . . . Fabricators 9 | . . . . . . . . 9 . . . . Repair Stations 6 | . 2 . . . . . . 4 . . . . Recycling Units 1 | . . . . . 1 . . . . . . . Scanalyzers 8 | . . . . . 5 . . 3 . . . . Garrison Access 4 | . . . . . . 2 . 2 . . . . Terminal Hacks 42 | . 12 1 2 . 7 . . 19 1 . . . Record 3 | . . . 1 . . . . 2 . . . . Part Schematic 2 | . . . . . . . . 2 . . . . Robot Analysis 4 | . 3 . . . . . . 1 . . . . Prototype ID Bank 9 | . 5 . . . 1 . . 3 . . . . Open Door 2 | . . 1 . . . . . . 1 . . . Branch Access Points 2 | . . . . . 1 . . 1 . . . . Machine Index 1 | . . . . . . . . 1 . . . . Terminal Index 2 | . 1 . . . . . . 1 . . . . Alert Level 2 | . . . . . 1 . . 1 . . . . Unreport Threat 2 | . 1 . . . 1 . . . . . . . Locate Traps 6 | . . . . . 1 . . 5 . . . . Recall Extermination 1 | . . . . . . . . 1 . . . . Hauler Manifests 4 | . 2 . . . 1 . . 1 . . . . Registered Components 1 | . . . . . 1 . . . . . . . EX-Prototype ID Bank 1 | . . . 1 . . . . . . . . . Fabricator Hacks 6 | . . . . . . . . 6 . . . . Network Status 1 | . . . . . . . . 1 . . . . Load Schematic 2 | . . . . . . . . 2 . . . . Build 3 | . . . . . . . . 3 . . . . Repair Station Hacks 4 | . 2 . . . . . . 2 . . . . Scan Component 2 | . 1 . . . . . . 1 . . . . Repair 2 | . 1 . . . . . . 1 . . . . Recycling Unit Hacks . | . . . . . . . . . . . . . Scanalyzer 4 | . . . . . 4 . . . . . . . Insert Component 2 | . . . . . 2 . . . . . . . Analyze 2 | . . . . . 2 . . . . . . . Garrison Access Hacks 2 | . . . . . . . . 2 . . . . Seal Access 2 | . . . . . . . . 2 . . . . Unauthorized Hacks 28 | . 7 . . . 5 . . 16 . . . . Terminals 23 | . 7 . . . 4 . . 12 . . . . Track 9 | . 4 . . . 2 . . 3 . . . . Assimilate 4 | . . . . . . . . 4 . . . . Botnet 7 | . 2 . . . 1 . . 4 . . . . Operators 3 | . 1 . . . 1 . . 1 . . . . Fabricators 1 | . . . . . . . . 1 . . . . Siphon 1 | . . . . . . . . 1 . . . . Repair Stations . | . . . . . . . . . . . . . Recycling Units 1 | . . . . . 1 . . . . . . . Tunnel 1 | . . . . . 1 . . . . . . . Scanalyzers 3 | . . . . . . . . 3 . . . . Extract 3 | . . . . . . . . 3 . . . . Garrison Access . | . . . . . . . . . . . . . Data Cores Recovered . | . . . . . . . . . . . . . Used . | . . . . . . . . . . . . . Hacking Detections 24 | . 6 . . . 5 1 . 12 . . . . Full Trace Events 2 | . . . . . 1 . . 1 . . . . Feedback Events . | . . . . . . . . . . . . . Feedback Blocked . | . . . . . . . . . . . . . Robot Schematics Acquired . | . . . . . . . . . . . . . Robots Built . | . . . . . . . . . . . . . Matter . | . . . . . . . . . . . . . Time . | . . . . . . . . . . . . . Total Robot Build Rating . | . . . . . . . . . . . . . Part Schematics Acquired 8 | . . . . . 2 . . 6 . . . . Parts Built 4 | . . . . . . . . 4 . . . . Matter 496 | . . . . . . . . 496 . . . . Time 144 | . . . . . . . . 144 . . . . Total Part Build Rating 14 | . . . . . . . . 14 . . . . Parts Repaired 2 | . 1 . . . . . . 1 . . . . Time 56 | . 26 . . . . . . 30 . . . . Parts Recycled . | . . . . . . . . . . . . . Recycled Matter . | . . . . . . . . . . . . . Retrieved Matter . | . . . . . . . . . . . . . Retrieved Components . | . . . . . . . . . . . . . Parts Scanalyzed 2 | . . . . . 2 . . . . . . . Part Schematics Acquired 2 | . . . . . 2 . . . . . . . Parts Damaged . | . . . . . . . . . . . . . Bothacking | -11 -10 -10 -10 -9 -8 -7 -7 -7 -7 -7 -7 -7 ------------ Run | Scr Mat Min Exi Min Mat Fac Was Fac Low Low Zio Dee Used RIF Installer . | . . . . . . . . . . . . . Robots Hacked . | . . . . . . . . . . . . . Non-combat . | . . . . . . . . . . . . . Combat . | . . . . . . . . . . . . . Robot Hacks Applied . | . . . . . . . . . . . . . Relay Couplers Released . | . . . . . . . . . . . . . Robots Rewired . | . . . . . . . . . . . . . Allies Hacked . | . . . . . . . . . . . . . Hacks Repelled . | . . . . . . . . . . . . . Allies | -11 -10 -10 -10 -9 -8 -7 -7 -7 -7 -7 -7 -7 -------- Run | Scr Mat Min Exi Min Mat Fac Was Fac Low Low Zio Dee Total Allies 2 | . . . . . . . . 2 . . . . Largest Group 2 | . . . . . . . . 2 2 . . . Highest-Rated Group 36 | . . . . . . . . 36 36 . . . Highest-Rated Ally 26 | . . . . . . . . 26 26 . . . Total Orders 14 | . . . . . . . . 14 . . . . STAY 7 | . . . . . . . . 7 . . . . FOLLOW 7 | . . . . . . . . 7 . . . . Ally Attacks . | . . . . . . . . . . . . . Total Damage . | . . . . . . . . . . . . . Kills . | . . . . . . . . . . . . . Allies Corrupted . | . . . . . . . . . . . . . Allies Melted . | . . . . . . . . . . . . . Intel | -11 -10 -10 -10 -9 -8 -7 -7 -7 -7 -7 -7 -7 ------- Run | Scr Mat Min Exi Min Mat Fac Was Fac Low Low Zio Dee Robot Analysis Total 4 | . 3 . . . . . . 1 . . . . Derelict Logs Recovered 4 | . . 1 . 1 . . . . 1 . 1 . Drone Launches . | . . . . . . . . . . . . . Drone Recoveries . | . . . . . . . . . . . . . Exploration | -11 -10 -10 -10 -9 -8 -7 -7 -7 -7 -7 -7 -7 ------------- Run | Scr Mat Min Exi Min Mat Fac Was Fac Low Low Zio Dee Turns Passed 9470 | 55 1247 1166 323 334 3060 206 16 1718 230 219 702 194 Spaces Moved 9678 | 52 704 684 322 254 1421 257 62 3008 576 472 1568 298 Core 28 | 25 . . . . . . . . . . . 3 Treads 1534 | . 210 284 . . 1012 28 . . . . . . Legs . | . . . . . . . . . . . . . Wheels 1906 | 27 494 400 322 254 409 . . . . . . . Hover . | . . . . . . . . . . . . . Flight 6210 | . . . . . . 229 62 3008 576 472 1568 295 Fastest Speed 26 | 50 90 100 100 100 110 26 26 26 26 26 26 26 Average Speed 67 | 81 129 149 100 100 160 43 26 26 26 26 26 28 Slowest Speed 220 | 150 200 220 100 110 180 180 26 105 26 26 26 200 Overloaded Moves . | . . . . . . . . . . . . . Propulsion Burnouts . | . . . . . . . . . . . . . Robots Hopped 21 | . . . . . . . . 21 . . . . Cave-ins Triggered . | . . . . . . . . . . . . . Exploration Rate (%) 64 | 4 95 98 69 76 80 8 75 64 82 72 86 27 Regions Visited 12 Branch Regions 7 Pre-discovered Areas 4 | . . 1 1 . 1 . . . . . 1 . Known Exits Taken 1 | . . . . . . . . 1 . . . . Unknown Exits Taken 9 | 1 1 1 1 1 1 . . . 1 1 1 . Scrap Searched 9 | . . 1 . 2 . . . . 2 2 2 . Spaces Dug 59 | . 1 . . . 8 2 . 37 4 . 6 1 Terrain Destroyed 60 | . 2 . . . 8 2 . 37 4 . 6 1 Melee 59 | . 1 . . . 8 2 . 37 4 . 6 1 Projectile . | . . . . . . . . . . . . . AOE 1 | . 1 . . . . . . . . . . . Terrain Rammed . | . . . . . . . . . . . . . Walls Destroyed . | . . . . . . . . . . . . . Machines Disabled . | . . . . . . . . . . . . . Actions | -11 -10 -10 -10 -9 -8 -7 -7 -7 -7 -7 -7 -7 --------- Run | Scr Mat Min Exi Min Mat Fac Was Fac Low Low Zio Dee Total 12022 | 61 934 760 323 306 1959 351 61 3841 651 566 1820 389 Wait 1629 | . 131 14 . 20 288 57 . 709 69 90 192 59 Move 9627 | 51 703 683 321 253 1420 257 61 2967 575 471 1567 298 Hop 19 | . . . . . . . . 19 . . . . Pick Up 96 | 4 20 10 1 5 24 11 . 15 1 1 3 1 Fast Attach 22 | 6 2 . . . 4 1 . 4 . 1 3 1 Attach 36 | . 4 2 . 1 10 9 . 5 1 . 2 2 Detach 4 | . . . . . 2 1 . 1 . . . . Swap 109 | . 11 5 . 6 44 2 . 33 . 2 3 3 Drop 75 | . 6 5 1 5 20 9 . 17 1 1 5 5 Fire 238 | . 50 41 . 16 127 . . . . . . 4 Melee 156 | . 2 . . . 15 4 . 71 4 . 45 15 Ram . | . . . . . . . . . . . . . Kick . | . . . . . . . . . . . . . Crush 10 | . 5 . . . 5 . . . . . . . Escape Stasis . | . . . . . . . . . . . . . Rewire . | . . . . . . . . . . . . . Trap 1 | . . . . . . . . . . . . 1 Miscellaneous . | . . . . . . . . . . . . . Route ------- -11/Scrapyard -10/Materials (discovered 5 exits: [*Mat x3] / *Min x2) -10/Mines (discovered 3 exits: [*Mat x2] / *Exi) -10/Exiles -9/Mines (discovered 2 exits: *Mat x2) -8/Materials (discovered 2 exits: *Fac x2) -7/Factory -7/Waste -7/Factory (discovered 6 exits: [*Fac x2] / Sto x2 / *Low x2) -7/Lower Caves -7/Lower Caves -7/Zion (discovered 2 exits: [*Dee] / [*Pro]) -7/Deep Caves History --------- Turn | Location | Event 7 | -11/Scrapyard | Discovered new exit (range 16) 56 | -11/Scrapyard | Entered Materials 314 | -10/Materials | Build established: Mutant 528 | -10/Materials | Discovered new exit (range 11) 865 | -10/Materials | Discovered new exit (range 16) 986 | -10/Materials | Discovered new exit (range 16) 1039 | -10/Materials | Repaired Assault Rifle 1159 | -10/Materials | Discovered new exit (range 15) 1242 | -10/Materials | Discovered new exit (range 15) 1303 | -10/Materials | Entered Mines 1345 | -10/Mines | Learned location of Storage (-7) 1369 | -10/Mines | Met a Derelict bent on vengeance 1503 | -10/Mines | Core integrity fell below 50% 1945 | -10/Mines | Deemed a non-threat by the Exiles lab entrance 1945 | -10/Mines | Discovered new exit (range 5) 1991 | -10/Mines | Discovered new exit (range 13) 1995 | -10/Mines | Learned Materials stockpile data 2023 | -10/Mines | Met a Derelict who couldn't figure out how to use a Trap Extractor 2087 | -10/Mines | Received a Rocket Launcher from a helpful Derelict 2177 | -10/Mines | Discovered new exit (range 5) 2338 | -10/Mines | Found a hidden stash of uninstalled traps 2469 | -10/Mines | Entered Exiles 2494 | -10/Exiles | Met 8R-AWN 2510 | -10/Exiles | Met EX-HEX 2539 | -10/Exiles | Met EX-BIN 2552 | -10/Exiles | Aligned with FarCom system 2553 | -10/Exiles | Given EX-Vault access code 2578 | -10/Exiles | Opened EX-Vault 2588 | -10/Exiles | Found Trap Reconfigurator 2611 | -10/Exiles | Warned to stay clear of 0b10 Research branches 2636 | -10/Exiles | Met EX-DEC 2754 | -10/Exiles | Learned location of Zion (-7) 2783 | -10/Exiles | Discovered new exit (range 10) 2792 | -10/Exiles | Left Exiles lab with Trap Reconfigurator 2792 | -10/Exiles | Entered Mines 2825 | -9/Mines | Learned Materials emergency access door positions 2925 | -9/Mines | Discovered new exit (range 15) 3018 | -9/Mines | A weapon hastily lodged in a ceiling crevice suddenly fell to the ground 3025 | -9/Mines | Discovered new exit (range 11) 3076 | -9/Mines | Joined a pair of Derelicts in attacking an 0b10 outpost 3126 | -9/Mines | Entered Materials 3126 | -8/Materials | Evolved 4 slots: Utility x4 3618 | -8/Materials | Discovered new exit (range 13) 4333 | -8/Materials | Build established: Hauler-Mutant 5249 | -8/Materials | Build established: Hacker-Mutant 5507 | -8/Materials | Discovered new exit (range 7) 6186 | -8/Materials | Entered Factory 6186 | -7/Factory | Evolved 2 slots: Propulsion x2 6392 | -7/Factory | Sucked down chute 6392 | -7/Factory | Entered Waste 6395 | -7/Waste | Spotted C-40 Crusher 6396 | -7/Waste | Spotted C-40 Crusher 6398 | -7/Waste | Spotted C-40 Crusher 6400 | -7/Waste | Spotted C-40 Crusher 6404 | -7/Waste | Discovered new exit (range 16) 6405 | -7/Waste | Spotted C-40 Crusher 6405 | -7/Waste | Spotted C-40 Crusher 6407 | -7/Waste | EMP discharged 6408 | -7/Waste | Entered Factory 6771 | -7/Factory | Discovered new exit (range 13) 6792 | -7/Factory | Fabricated Imp. Trap Extractor (x2) 7050 | -7/Factory | Build established: Hacker-Sprinter 7336 | -7/Factory | Repaired Imp. VTOL Module 7448 | -7/Factory | Identified exit to Storage 7448 | -7/Factory | Identified exit to Lower Caves 7501 | -7/Factory | Fabricated Imp. VTOL Module? 7541 | -7/Factory | Discovered new exit (range 7) 7701 | -7/Factory | Local fabrication network quarantined 7705 | -7/Factory | Fabricated Imp. VTOL Module? 8120 | -7/Factory | Central database locked down 8126 | -7/Factory | Entered Lower Caves 8126 | -7/Lower Caves | Accompanied by 2 allies 8137 | -7/Lower Caves | Attracted the attention of an 0b10 checkpoint 8150 | -7/Lower Caves | Encountered a Warlord checkpoint 8235 | -7/Lower Caves | Learned 4 Factory zone layouts 8351 | -7/Lower Caves | Discovered new exit (range 10) 8356 | -7/Lower Caves | Entered another Lower Caves area 8488 | -7/Lower Caves | Discovered new exit (range 16) 8575 | -7/Lower Caves | Entered Zion 8589 | -7/Zion | Discovered new exit (range 9) 8647 | -7/Zion | Learned location of Warlord (-4) 8695 | -7/Zion | Learned 8 Factory zone layouts 8776 | -7/Zion | Found Prototype Device 8777 | -7/Zion | Identified Phasing AFG 9276 | -7/Zion | Discovered new exit (range 5) 9277 | -7/Zion | Saw the warning signs outside the Deep Caves entrance 9277 | -7/Zion | Entered Deep Caves 9432 | -7/Deep Caves | Attacked by Z-Imprinter 9456 | -7/Deep Caves | Core integrity fell below 50% 9467 | -7/Deep Caves | Core integrity fell below 20% 9471 | -7/Deep Caves | Destroyed by PA-AD1(z) with Zionite Laser-S Last Messages --------------- 09361_ Acquired Imp. VTOL Module. 09362_ Dropped Imp. Trap Extractor. 09422_ NEW_ZION: Z-Facility proximity alert. Z-Imprinter: GET AWAY FROM HERE! I've worked too hard for our future just to have you ruin everything! 09437_ Mak. Spear follow-up attack on Z-Imprinter. 09439_ Hrd. Light Armor Plating destroyed. 09441_ Mic. Nuclear Core destroyed. 09442_ EM Shield destroyed. 09443_ Hacking Suite destroyed. 09446_ Adv. EMP Blaster destroyed. 09449_ Mak. Spear follow-up attack on Z-Imprinter. 09453_ Z-Imprinter suffers critical hit. 09453_ Destroyed Prototype Protection. 09459_ Mak. Spear follow-up attack on Z-Imprinter. 09459_ Imp. Propulsion Shielding destroyed. 09459_ Mic. Nuclear Core destroyed. 09463_ Imp. VTOL Module destroyed. 09463_ Destroyed Prototype Hover Unit. 09463_ Mak. Spear follow-up attack on Z-Imprinter. Map ----- +----------------------------------------------------+ | | | | | | | | | | | | | | | | | | | | | | | | | | | | | ?????????????????#???????????????????????????????? | | ############?????# ??????????????????????????????? | | ##???# #?????????????????????????????? | | ###?#;;##???????????????????????????? | | ##;;## ;;##???######????????????????? | | ;; ; ; ##### ##???????????????? | | ;;;## #???????????????? | | #???????????????? | | #??????####?????? | | ##?????## #?????? | | #?????## #?????? | | """""" @ ##???## ##????? | | """"""""" ##### ##???? | | ?????"""" I z ##?## | | ??????""" z ### | | ??????? | | ??????""" ##### | | ??????""" ###???## | | ????????" ##??????## | | ????????" #????????# | | ?????????? ##???????## | | ???????????? #????????# | | ?????????????? #????????## | | ??????????????? #?????????## | | ??????????????? ##??????????## | | ??????????????? ##???????????# | | ??????????????? #????######## | | ??????????????? #???## ## | | ??????????????? ##???# # | | ??????????????? ##????# | | ??????????????? ##????# | | ??????????????? ##???# | | ??????????????? #???# | | ???????????????? #???## ## | | ???????????????? ##????## ### | | ???????????????? #??????## #? | +----------------------------------------------------+ Best States ------------- Heat Dissipation 45 Energy Generation 18 Energy Capacity 310 Matter Stores 300 Matter Capacity 300 Sight Range 16 Terrain Scan Density 10 ECM Strength 2 Armor Coverage 600 Resistance: EM 25 Propulsion Shielding 66 Evasion (%) 64 Melee Accuracy 6 Target Analysis 5 Recoil Reduction 2 Kinecelleration 30 Offensive Hacking 20 Defensive Hacking 20 Item Schematics ----------------- System Shield | -8/Materials | Scanalyzed Imp. VTOL Module | -8/Materials | Scanalyzed Imp. System Shield | -7/Factory | Hacked Imp. Hover Unit | -7/Factory | Extracted Great Maul | -7/Factory | Extracted Transmission Jammer | -7/Factory | Extracted Imp. System Backup Module | -7/Factory | Hacked Armor Integrity Analyzer | -7/Factory | Extracted Robot Schematics ------------------ None Fabricated ------------ Imp. Trap Extractor | x2 | -7/Factory | Preloaded Imp. VTOL Module | x1 | -7/Factory Imp. VTOL Module | x1 | -7/Factory Alien Tech Used ----------------- None Achievements -------------- None Challenges ------------ None Game ------ Seed TerrainManeuveringMegatreads Manual? 0 Play Time 03:13:07 Cumulative 146.9 hours Start 2020.10.25 @ 14:06:40 End 2020.10.26 @ 01:24:56 Sessions 5 Manual Loads 0 Difficulty Rogue Special Mode None Game No. 66 Rogue 62 Adventurer 4 Explorer 0 Win Type - Total 1 Types 1/0/0/0/0/0/0/0/0 Lore% 53 Gallery% 66 Achievement% 50 Wizard Run 0 Options --------- ASCII 1 Keyboard 0 Movement Arrows Keybinds 0 Fullscreen 1 Font 18/Smallcaps Map View 76x50 Tactical HUD 1 Map Filters NONE Filters NONE Steam 1 RUN: cdbd4151-a8a4-431b-9fff-9e14b060063c